bitfinex/quotes_SOLUSD_20251201
["timestamp","ask_amount","ask_price","bid_price","bid_amount"]
[1764547749812,7.62369444,131.17,131.07,0.1]
[1764547750008,9.64616995,131.11,131.07,0.1]
[1764547750207,8.80994492,131.2,131.08,10.33616995]
[1764547750408,8.80994492,131.25,131.08,2.68999999]
[1764547750613,0.68,131.31,131.13,91.308864]
[1764547750825,7.61266747,131.36,131.21,16.308864]
[1764547751037,9.64616995,131.28,131.2,16.308864]
[1764547751234,0.68,131.37,131.24,9.64616995]
[1764547751535,9.64616995,131.35,131.28,16.308864]
[1764547751835,9.64616995,131.43,131.35,16.308864]
[1764547752044,9.64616995,131.43,131.25,26.66666665]
[1764547752045,9.64616995,131.42,131.32,4.04]
[1764547752214,0.68,131.55,131.42,16.308864]
[1764547752417,7.60051683,131.57,131.36,91.308864]
[1764547752418,9.64616995,131.46,131.36,91.308864]
[1764547752615,0.68,131.54,131.4,75.0]
[1764547752813,0.68,131.54,131.41,75.0]
[1764547753013,0.2,131.58,131.44,16.308864]
[1764547753440,0.2,131.58,131.51,25.95503395]
[1764547753618,0.2,131.58,131.52,0.69]
[1764547753937,9.64616995,131.53,131.52,75.0]
[1764547754112,0.68,131.57,131.54,75.0]
[1764547754313,1.99999999,131.54,131.38,8.80994492]
[1764547754510,8.80994492,131.49,131.37,83.30190068]
[1764547754736,9.64616995,131.49,131.4,9.64616995]
[1764547754945,16.308864,131.55,131.42,9.64616995]
[1764547755110,0.68,131.53,131.41,8.80994492]
[1764547755312,16.308864,131.49,131.38,0.69]
[1764547755516,8.80994492,131.49,131.38,10.33616995]
[1764547755716,8.80994492,131.52,131.38,0.69]
[1764547755717,7.60390714,131.52,131.38,0.69]
[1764547756030,0.68,131.55,131.39,0.19]
[1764547756223,9.64616995,131.54,131.46,16.308864]
[1764547756422,0.2,131.58,131.47,8.80994492]
[1764547756632,0.2,131.58,131.5,16.308864]
[1764547756936,0.2,131.58,131.48,75.0]
[1764547757147,0.2,131.58,131.5,8.80994492]
[1764547757322,0.2,131.58,131.48,16.308864]
[1764547757647,9.64616995,131.54,131.48,16.308864]
[1764547757826,0.2,131.58,131.49,9.64616995]
[1764547758027,0.2,131.58,131.5,8.80994492]
[1764547758231,9.64616995,131.54,131.5,0.69]
[1764547760155,7.59097981,131.74,131.65,9.64616995]
[1764547760351,9.64616995,131.74,131.64,75.0]
[1764547760655,7.58973945,131.76,131.67,16.308864]
[1764547760863,0.68,131.81,131.67,16.308864]
[1764547760864,9.64616995,131.78,131.71,9.64616995]
[1764547761024,7.58633132,131.82,131.72,0.69]
[1764547761224,9.64616995,131.77,131.71,75.0]
[1764547761558,9.64616995,131.72,131.68,7.59410401]
[1764547761733,9.64616995,131.7,131.65,8.80994492]
[1764547761932,9.64616995,131.68,131.63,8.80994492]
[1764547762149,9.64616995,131.68,131.55,7.60167236]
[1764547762150,9.64616995,131.64,131.55,7.60167236]
[1764547762323,9.64616995,131.75,131.55,7.60167236]
[1764547762324,16.988864,131.67,131.55,82.60167236]
[1764547762650,16.988864,131.67,131.53,92.24863262]
[1764547762651,9.64616995,131.59,131.53,92.24863262]
[1764547762837,16.308864,131.63,131.52,0.69]
[1764547763041,9.64616995,131.59,131.52,0.69]
[1764547763225,16.988864,131.62,131.49,86.64499887]
[1764547763426,7.60051683,131.57,131.48,8.29521485]
[1764547763626,16.308864,131.64,131.52,9.64616995]
[1764547763825,9.64616995,131.6,131.53,9.64616995]
[1764547764033,0.66,131.73,131.59,9.64616995]
[1764547764353,9.64616995,131.71,131.64,9.64616995]
[1764547764538,9.64616995,131.71,131.6,8.80994492]
[1764547764539,9.64616995,131.65,131.6,0.68]
[1764547764740,9.64616995,131.64,131.59,0.68]
[1764547764934,0.66,131.73,131.6,19.13611487]
[1764547765143,26.5674814,131.74,131.63,9.64616995]
[1764547765352,0.66,131.82,131.68,9.64616995]
[1764547765641,9.64616995,131.69,131.63,17.008864]
[1764547765953,9.64616995,131.64,131.57,7.60025342]
[1764547766135,16.308864,131.65,131.52,83.80994492]
[1764547766341,16.308864,131.65,131.51,10.34616995]
[1764547766342,16.308864,131.65,131.54,93.45611487]
[1764547766547,9.64616995,131.75,131.48,42.0685975]
[1764547766548,9.64616995,131.55,131.48,7.6057195]
[1764547766730,16.308864,131.59,131.48,7.6057195]
[1764547767061,16.308864,131.57,131.47,0.7]
[1764547767235,16.308864,131.61,131.5,84.64616995]
[1764547767437,9.64616995,131.55,131.49,7.60514107]
[1764547767749,9.64616995,131.53,131.48,0.7]
[1764547767933,0.72,131.6,131.5,9.64616995]
[1764547768125,7.59416767,131.68,131.58,9.64616995]
[1764547768326,9.64616995,131.61,131.53,75.0]
[1764547768579,9.64616995,131.62,131.56,16.308864]
[1764547768859,26.57958686,131.68,131.57,9.64616995]
[1764547768860,9.64616995,131.64,131.57,9.64616995]
[1764547769033,7.59416767,131.68,131.58,18.45611487]
[1764547769232,26.57958686,131.68,131.58,0.7]
[1764547769461,17.24594074,131.59,131.48,8.30547538]
[1764547769640,9.64616995,131.52,131.48,8.30547538]
[1764547769838,7.59977079,131.59,131.49,10.34616995]
[1764547770159,0.72,131.62,131.51,16.308864]
[1764547770335,0.72,131.62,131.46,75.0]
[1764547770336,9.64616995,131.53,131.42,75.0]
[1764547770663,0.72,131.57,131.46,0.7]
[1764547770827,0.72,131.57,131.41,0.7]
[1764547770828,9.64616995,131.47,131.41,0.7]
[1764547771149,9.64616995,131.47,131.35,150.0]
[1764547771150,9.64616995,131.46,131.39,9.64616995]
[1764547771338,8.80994492,131.55,131.39,9.64616995]
[1764547771654,9.64616995,131.45,131.38,75.0]
[1764547771830,9.64616995,131.39,131.37,0.1]
[1764547772034,16.308864,131.49,131.37,0.1]
[1764547772035,9.64616995,131.38,131.37,0.1]
[1764547772553,0.72,131.48,131.37,0.1]
[1764547772554,0.72,131.52,131.37,0.8]
[1764547772851,9.64616995,131.42,131.37,0.1]
[1764547773055,28.60388187,131.56,131.41,9.64616995]
[1764547773056,27.32388188,131.56,131.41,9.64616995]
[1764547773353,9.64616995,131.5,131.43,9.64616995]
[1764547773530,9.64616995,131.58,131.44,0.7]
[1764547773725,26.59170337,131.62,131.43,84.64616995]
[1764547773952,9.64616995,131.49,131.43,75.0]
[1764547774156,8.80994492,131.57,131.39,94.02625764]
[1764547774340,16.308864,131.48,131.34,0.7]
[1764547774527,16.308864,131.55,131.41,9.64616995]
[1764547774726,75.0,131.66,131.41,9.64616995]
[1764547774727,9.64616995,131.57,131.5,25.95503395]
[1764547774960,9.64616995,131.54,131.47,9.64616995]
[1764547775131,9.64616995,131.54,131.46,75.0]
[1764547775458,7.59589821,131.65,131.52,7.60340632]
[1764547775668,7.59589821,131.65,131.49,16.308864]
[1764547775669,9.64616995,131.55,131.49,16.308864]
[1764547775961,8.31589821,131.65,131.52,75.0]
[1764547775962,9.64616995,131.57,131.52,75.0]
[1764547776263,9.64616995,131.65,131.58,75.0]
[1764547776460,0.72,131.72,131.58,100.95503395]
[1764547776759,9.64616995,131.75,131.68,25.95503395]
[1764547777053,9.64616995,131.69,131.64,91.308864]
[1764547777238,0.72,131.77,131.65,10.34616995]
[1764547777448,9.64616995,131.69,131.63,91.308864]
[1764547777632,9.64616995,131.67,131.61,75.0]
[1764547777833,0.72,131.74,131.61,75.0]
[1764547778059,0.72,131.74,131.62,10.34616995]
[1764547778260,38.15874111,131.88,131.64,9.64616995]
[1764547778261,9.64616995,131.71,131.64,9.64616995]
[1764547778454,9.64616995,131.75,131.59,91.308864]
[1764547778796,9.64616995,131.64,131.59,16.308864]
[1764547778936,16.308864,131.73,131.6,8.80994492]
[1764547779136,9.64616995,131.67,131.6,19.15611487]
[1764547779443,9.64616995,131.66,131.6,8.80994492]
[1764547779633,9.64616995,131.64,131.59,17.008864]
[1764547779836,9.64616995,131.65,131.59,9.50994492]
[1764547780068,9.64616995,131.64,131.59,0.7]
[1764547780251,9.52994492,131.7,131.58,16.308864]
[1764547780434,0.72,131.7,131.58,16.308864]
[1764547780629,64.52103924,131.74,131.62,18.45611487]
[1764547780630,8.31072195,131.74,131.62,18.45611487]
[1764547780849,7.58939468,131.77,131.66,8.80994492]
[1764547781136,8.308156,131.79,131.69,9.64616995]
[1764547781337,9.64616995,131.76,131.69,0.7]
[1764547781662,9.64616995,131.74,131.7,7.59301442]
[1764547781864,0.72,131.8,131.7,7.59301442]
[1764547782066,9.64616995,131.77,131.7,36.22172043]
[1764547782384,7.58610226,131.82,131.71,25.81880892]
[1764547782537,9.64616995,131.78,131.71,26.65503395]
[1764547782739,16.308864,131.79,131.68,7.59364558]
[1764547782964,0.92,131.88,131.76,16.308864]
[1764547783134,0.92,131.88,131.72,26.65503395]
[1764547783135,9.64616995,131.79,131.72,26.65503395]
[1764547783339,16.308864,131.83,131.68,27.27906477]
[1764547783539,9.64616995,131.77,131.7,33.54804837]
[1764547783763,9.64616995,131.75,131.7,23.90187842]
[1764547783938,7.58610226,131.82,131.7,23.90187842]
[1764547783939,0.72,131.81,131.7,23.90187842]
[1764547784139,0.72,131.81,131.7,34.24804837]
[1764547784340,9.64616995,131.77,131.7,34.24804837]
[1764547784562,9.64616995,131.74,131.7,7.59301442]
[1764547784740,0.72,131.81,131.7,8.29301442]
[1764547784955,0.72,131.81,131.68,25.95503395]
[1764547784956,9.64616995,131.74,131.68,7.5936398]
[1764547785143,9.64616995,131.69,131.61,7.59765316]
[1764547785339,16.308864,131.79,131.61,7.59765316]
[1764547785340,0.72,131.77,131.63,9.64616995]
[1764547785543,7.58955676,131.76,131.66,7.59532128]
[1764547785864,9.64616995,131.67,131.53,75.0]
[1764547786168,9.64616995,131.56,131.52,7.60340632]
[1764547786368,0.72,131.66,131.5,82.6043639]
[1764547786669,8.80994492,131.63,131.5,7.6043639]
[1764547787056,17.028864,131.62,131.5,7.6043639]
[1764547787247,9.64616995,131.55,131.5,7.6043639]
[1764547787443,9.64616995,131.51,131.44,4.0]
[1764547787644,42.90460867,131.6,131.46,9.64616995]
[1764547787852,0.72,131.59,131.49,9.64616995]
[1764547788054,9.64616995,131.56,131.47,75.0]
[1764547788268,9.64616995,131.54,131.47,9.64616995]
[1764547788463,0.72,131.59,131.47,0.26]
[1764547788655,9.64616995,131.51,131.45,26.62609356]
[1764547788969,0.72,131.58,131.45,26.62609356]
[1764547788970,9.64616995,131.5,131.45,26.62609356]
[1764547789173,10.36616995,131.58,131.38,0.26]
[1764547789174,9.64616995,131.46,131.38,0.26]
[1764547789351,9.64616995,131.43,131.39,26.63759332]
[1764547789676,16.308864,131.48,131.37,0.1]
[1764547789881,16.308864,131.48,131.38,0.26]
[1764547790179,0.72,131.51,131.38,9.90616995]
[1764547790385,9.64616995,131.44,131.38,0.26]
[1764547790667,25.11880892,131.52,131.41,9.64616995]
[1764547790668,16.308864,131.52,131.41,9.64616995]
[1764547790850,16.308864,131.52,131.39,9.90616995]
[1764547790851,9.64616995,131.45,131.39,9.90616995]
[1764547791052,9.64616995,131.4,131.37,0.1]
[1764547791252,25.11880892,131.49,131.37,0.1]
[1764547791253,8.80994492,131.45,131.37,0.1]
[1764547791459,9.64616995,131.38,131.37,0.1]
[1764547791668,0.72,131.49,131.37,0.1]
[1764547791848,9.64616995,131.45,131.37,0.1]
[1764547792050,74.24565315,131.58,131.38,8.80994492]
[1764547792269,0.72,131.53,131.4,8.80994492]
[1764547792571,0.72,131.53,131.37,0.1]
[1764547792572,9.64616995,131.43,131.37,0.1]
[1764547792770,0.72,131.53,131.4,9.64616995]
[1764547792971,76.24565314,131.58,131.43,9.64616995]
[1764547792972,0.72,131.52,131.43,9.64616995]
[1764547793266,9.64616995,131.51,131.45,9.64616995]
[1764547793472,9.64616995,131.5,131.44,7.60803408]
[1764547793654,8.80994492,131.56,131.44,7.60803408]
[1764547793655,0.72,131.61,131.49,9.64616995]
[1764547793855,18.99118808,131.64,131.47,16.308864]
[1764547794063,0.72,131.63,131.48,9.64616995]
[1764547794373,9.64616995,131.49,131.43,16.308864]
[1764547794573,9.64616995,131.48,131.43,16.308864]
[1764547794779,0.72,131.56,131.45,9.64616995]
[1764547795076,9.64616995,131.56,131.49,9.64616995]
[1764547795278,0.72,131.6,131.51,9.64616995]
[1764547795483,9.64616995,131.56,131.5,16.308864]
[1764547795654,16.4093642,131.59,131.46,16.568864]
[1764547795858,16.4093642,131.59,131.47,9.64616995]
[1764547795859,9.64616995,131.54,131.47,9.64616995]
[1764547796063,8.80994492,131.57,131.42,9.90616995]
[1764547796261,9.64616995,131.47,131.39,7.61092929]
[1764547796590,9.64616995,131.45,131.39,9.64616995]
[1764547796876,9.64616995,131.45,131.4,16.308864]
[1764547797254,8.25941928,131.59,131.44,93.45611487]
[1764547797462,9.64616995,131.53,131.47,25.95503395]
[1764547797674,9.64616995,131.51,131.47,16.308864]
[1764547797874,7.60067544,131.57,131.47,25.95503395]
[1764547798058,9.64616995,131.53,131.47,16.308864]
[1764547798258,9.64616995,131.51,131.45,19.27860922]
[1764547798461,9.64616995,131.52,131.46,7.60684357]
[1764547798666,9.64616995,131.54,131.47,9.64616995]
[1764547798862,75.0,131.76,131.51,9.64616995]
[1764547799078,9.64616995,131.55,131.48,84.90616995]
[1764547799256,9.64616995,131.55,131.49,16.308864]
[1764547799450,4.0,131.68,131.52,9.64616995]
[1764547799451,9.64616995,131.58,131.52,9.64616995]
[1764547799677,0.66,131.64,131.53,7.60282825]
[1764547799888,0.66,131.64,131.54,18.45611487]
[1764547800195,8.25660902,131.64,131.54,16.308864]
[1764547800366,1.99999999,131.69,131.57,24.45967934]
[1764547800367,7.59580723,131.66,131.57,24.45967934]
[1764547800554,8.15081534,131.6,131.54,7.624]
[1764547800755,0.66,131.65,131.54,16.308864]
[1764547800953,0.66,131.64,131.51,75.26]
[1764547801155,0.66,131.64,131.48,3.98]
[1764547801156,8.15081534,131.6,131.48,7.60549017]
[1764547801356,8.80994492,131.59,131.43,0.26]
[1764547801580,8.15081534,131.55,131.48,15.75653484]
[1764547801779,0.66,131.66,131.57,16.308864]
[1764547802081,8.15081534,131.59,131.51,75.0]
[1764547802263,0.66,131.66,131.51,16.308864]
[1764547802573,0.66,131.65,131.5,0.26]
[1764547802789,0.66,131.65,131.53,16.43394492]
[1764547803007,26.57555048,131.7,131.56,24.58476026]
[1764547803158,26.57555048,131.7,131.61,7.624]
[1764547803159,8.15081534,131.68,131.61,7.624]
[1764547803359,7.59301442,131.7,131.62,24.45967934]
[1764547803554,8.15081534,131.68,131.62,15.22162953]
[1764547803776,0.66,131.71,131.64,16.308864]
[1764547803978,7.58962055,131.76,131.68,8.15081534]
[1764547804182,0.2,131.8,131.67,7.624]
[1764547804183,8.15081534,131.71,131.67,7.624]
[1764547804478,8.15081534,131.72,131.67,7.624]
[1764547804682,0.2,131.8,131.7,8.15081534]
[1764547804683,8.15081534,131.76,131.7,8.15081534]
[1764547804857,7.58782912,131.79,131.67,8.15081534]
[1764547805069,7.58782912,131.79,131.64,75.0]
[1764547805070,8.15081534,131.74,131.69,16.308864]
[1764547805273,0.2,131.8,131.73,8.15081534]
[1764547805274,8.35081534,131.8,131.73,8.15081534]
[1764547805475,0.2,131.8,131.76,24.45967934]
[1764547805688,8.15081534,131.79,131.76,7.58915977]
[1764547805890,0.2,131.8,131.77,16.43394492]
[1764547806079,0.2,131.8,131.77,7.624]
[1764547806279,8.35081534,131.88,131.77,7.624]
[1764547806280,0.2,131.88,131.77,7.624]
[1764547806512,0.2,131.88,131.76,26.56305169]
[1764547806513,8.35081534,131.88,131.8,16.308864]
[1764547806811,8.35081534,131.88,131.78,13.04994492]
[1764547806812,0.2,131.88,131.86,8.80994492]
[1764547806972,8.15081534,131.87,131.81,7.624]
[1764547807174,8.15081534,131.82,131.77,16.308864]
[1764547807383,8.15081534,131.82,131.76,35.37299661]
[1764547807384,8.15081534,131.82,131.76,32.04883911]
[1764547807586,7.44411534,131.81,131.76,23.89802377]
[1764547807807,0.66,131.9,131.8,75.0]
[1764547808026,0.66,131.94,131.86,8.15081534]
[1764547808307,18.93939393,132.0,131.9,8.15081534]
[1764547808474,18.93939393,132.0,131.91,8.15081534]
[1764547808678,7.57459147,132.03,131.93,8.15081534]
[1764547808890,8.15081534,132.06,131.99,8.15081534]
[1764547809095,8.15081534,132.03,131.97,23.932864]
[1764547809281,0.2,132.1,132.01,16.308864]
[1764547809484,8.15081534,132.07,132.01,16.308864]
[1764547809683,0.86,132.1,131.99,75.0]
[1764547809899,8.15081534,132.0,131.96,3.98]
[1764547810083,8.15081534,131.97,131.89,3.98]
[1764547810288,0.66,132.08,131.94,33.26962426]
[1764547810501,8.15081534,131.97,131.91,8.80994492]
[1764547810709,8.15081534,131.97,131.89,3.98]
[1764547810710,8.15081534,131.96,131.9,8.80994492]
[1764547810915,24.45967934,132.02,131.89,3.98]
[1764547811101,0.66,132.02,131.92,8.15081534]
[1764547811282,25.11880892,132.07,131.94,8.15081534]
[1764547811283,8.15081534,132.01,131.94,8.15081534]
[1764547811477,0.66,132.05,131.93,75.0]
[1764547811697,8.15081534,131.99,131.93,8.80994492]
[1764547811897,8.15081534,131.98,131.92,16.308864]
[1764547812097,8.15081534,132.0,131.94,75.0]
[1764547812301,8.15081534,132.02,131.89,12.13081534]
[1764547812521,16.968864,132.03,131.92,8.15081534]
[1764547812805,16.968864,132.03,131.89,11.56207012]
[1764547812806,8.15081534,131.95,131.89,12.13081534]
[1764547813004,0.66,132.02,131.91,8.80994492]
[1764547813205,8.15081534,131.92,131.82,75.0]
[1764547813411,16.308864,131.98,131.79,0.26]
[1764547813412,8.15081534,131.86,131.79,75.0]
[1764547813584,8.15081534,131.82,131.77,3.96]
[1764547813778,16.308864,131.92,131.77,3.96]
[1764547813779,7.58092638,131.91,131.78,8.15081534]
[1764547814006,8.15081534,131.79,131.77,3.96]
[1764547814209,8.15081534,131.79,131.71,75.0]
[1764547814210,8.15081534,131.78,131.72,8.15081534]
[1764547814506,8.15081534,131.81,131.75,99.45967934]
[1764547814689,0.66,131.87,131.69,3.96]
[1764547814690,8.15081534,131.77,131.7,75.0]
[1764547814891,8.15081534,131.76,131.7,75.0]
[1764547815186,8.15081534,131.72,131.65,83.15081534]
[1764547815510,8.15081534,131.76,131.69,83.15081534]
[1764547815706,8.15081534,131.76,131.66,0.26]
[1764547815707,0.66,131.84,131.74,75.0]
[1764547816004,16.308864,131.88,131.76,8.15081534]
[1764547816178,8.15081534,131.81,131.75,8.80994492]
[1764547816381,24.45967934,131.88,131.73,75.0]
[1764547816382,0.66,131.87,131.78,8.15081534]
[1764547816585,8.15081534,131.81,131.74,8.15081534]
[1764547816884,16.308864,131.81,131.69,8.15081534]
[1764547817101,0.66,131.8,131.69,16.308864]
[1764547817293,0.66,131.8,131.69,8.80994492]
[1764547817495,8.15081534,131.7,131.63,3.96]
[1764547817715,8.15081534,131.67,131.63,3.96]
[1764547817896,8.15081534,131.66,131.63,3.96]
[1764547818100,8.15081534,131.64,131.58,3.96]
[1764547818318,8.15081534,131.64,131.55,0.36]
[1764547818319,16.308864,131.71,131.55,0.1]
[1764547818482,8.15081534,131.6,131.55,0.1]
[1764547818680,8.15081534,131.56,131.55,0.1]
[1764547819247,8.81081534,131.56,131.55,0.1]
[1764547819886,16.41190989,131.56,131.46,3.96]
[1764547820099,0.66,131.55,131.46,3.96]
[1764547820296,8.15081534,131.51,131.46,3.96]
[1764547820497,8.80994492,131.59,131.46,3.96]
[1764547820498,16.968864,131.61,131.5,8.15081534]
[1764547820805,16.308864,131.62,131.44,7.60767498]
[1764547820806,8.15081534,131.51,131.44,7.60767498]
[1764547821009,8.15081534,131.46,131.4,26.63528498]
[1764547821206,8.15081534,131.46,131.4,101.63528498]
[1764547821398,8.80994492,131.57,131.41,83.15081534]
[1764547821399,0.66,131.53,131.41,83.15081534]
[1764547821601,0.66,131.53,131.44,16.96076026]
[1764547821804,7.60144363,131.56,131.44,75.0]
[1764547822032,7.60144363,131.56,131.37,8.25081534]
[1764547822033,8.15081534,131.45,131.37,8.25081534]
[1764547822198,8.15081534,131.41,131.38,75.0]
[1764547822403,8.15081534,131.39,131.37,0.1]
[1764547822612,8.15081534,131.42,131.37,7.71185422]
[1764547822803,8.15081534,131.4,131.37,7.71185422]
[1764547823030,0.66,131.48,131.37,8.25081534]
[1764547823214,64.6096528,131.56,131.37,8.25081534]
[1764547823215,0.66,131.53,131.41,8.15081534]
[1764547823408,8.15081534,131.47,131.41,8.15081534]
[1764547823610,8.15081534,131.47,131.43,7.60861294]
[1764547823846,7.60431699,131.51,131.38,7.6115086]
[1764547823847,8.15081534,131.44,131.38,7.6115086]
[1764547824021,25.77880892,131.5,131.38,7.6115086]
[1764547824205,8.15081534,131.41,131.38,7.6115086]
[1764547824523,0.66,131.49,131.37,7.71206797]
[1764547824718,0.66,131.49,131.38,8.80994492]
[1764547825225,0.66,131.49,131.39,91.96076026]
[1764547825527,0.66,131.58,131.46,16.308864]
[1764547825750,8.15081534,131.51,131.46,16.308864]
[1764547825906,0.68,131.57,131.48,8.15081534]
[1764547826232,8.15081534,131.54,131.47,75.36]
[1764547826433,18.99572699,131.61,131.39,0.36]
[1764547826434,8.15081534,131.48,131.39,0.36]
[1764547826640,16.308864,131.57,131.42,83.15081534]
[1764547826930,0.68,131.56,131.43,16.96076026]
[1764547827131,8.15081534,131.49,131.43,16.96076026]
[1764547827446,0.68,131.56,131.4,86.57026223]
[1764547827730,54.33180029,131.5,131.37,0.1]
[1764547827937,8.15081534,131.4,131.37,0.1]
[1764547828134,8.15081534,131.38,131.37,0.1]
[1764547828512,2.09509899,131.38,131.37,0.1]
[1764547828710,8.83081534,131.38,131.33,4.15535425]
[1764547828910,8.15081534,131.34,131.33,3.43535425]
[1764547829340,16.308864,131.37,131.33,3.43535425]
[1764547829640,7.6138267,131.34,131.33,2.39535425]
[1764547830226,23.91545738,131.34,131.33,1e-08]
[1764547830532,34.79920881,131.34,131.23,0.67]
[1764547830729,16.308864,131.31,131.23,0.67]
[1764547830904,16.308864,131.31,131.13,66.30784766]
[1764547831106,2.66999999,131.3,131.06,75.0]
[1764547831300,8.80994492,131.29,131.09,75.0]
[1764547831505,16.308864,131.26,131.07,1.99999999]
[1764547831707,16.308864,131.24,131.12,95.268864]
[1764547831932,16.308864,131.24,131.09,3.96]
[1764547832150,8.15081534,131.17,131.11,8.15081534]
[1764547832328,16.308864,131.24,131.11,8.15081534]
[1764547832512,16.308864,131.24,131.1,75.0]
[1764547832708,19.71098737,131.3,131.16,8.80994492]
[1764547832932,0.67,131.3,131.14,8.80994492]
[1764547833151,7.61556621,131.31,131.19,8.80994492]
[1764547833335,8.15081534,131.32,131.16,8.80994492]
[1764547833634,8.15081534,131.17,131.14,0.67]
[1764547833840,8.15081534,131.15,131.06,0.67]
[1764547834009,10.80994491,131.22,131.02,75.0]
[1764547834206,102.84375191,131.27,131.01,59.2876886]
[1764547834207,8.15081534,131.09,131.06,0.67]
[1764547834435,8.15081534,131.18,131.06,0.67]
[1764547834606,8.15081534,131.18,131.0,78.94]
[1764547834607,0.67,131.17,131.0,3.94]
[1764547834809,0.67,131.17,131.06,0.67]
[1764547835030,16.308864,131.16,131.06,8.82081534]
[1764547835236,8.15081534,131.08,131.02,75.0]
[1764547835439,8.15081534,131.08,130.95,155.5591311]
[1764547835440,25.78880892,131.15,130.95,293.83608815]
[1764547835756,26.69921427,131.09,130.95,132.73925932]
[1764547836051,8.15081534,131.18,130.95,132.73925932]
[1764547836052,16.308864,131.12,131.0,16.308864]
[1764547836224,16.308864,131.1,130.95,207.73925932]
[1764547836422,25.11880892,131.08,130.95,131.97925932]
[1764547836622,25.11880892,131.08,130.95,44.84298388]
[1764547836623,8.80994492,130.99,130.95,44.84298388]
[1764547836823,16.308864,130.96,130.85,3.94876712]
[1764547837023,8.80994492,130.95,130.82,150.1446281]
[1764547837454,8.15081534,130.88,130.82,150.1446281]
[1764547837628,16.308864,130.96,130.82,150.1446281]
[1764547837831,8.80994492,130.91,130.82,144.79376417]
[1764547838044,16.308864,130.93,130.82,140.80365343]
[1764547838355,25.11880892,130.92,130.82,140.80365343]
[1764547838572,8.80994492,130.92,130.82,140.80365343]
[1764547838924,75.0,131.05,130.83,0.67]
[1764547839150,8.80994492,130.92,130.83,0.67]
[1764547839449,8.80994492,131.01,130.83,8.82081534]
[1764547839662,8.15081534,130.95,130.87,16.308864]
[1764547839960,5.97999999,131.14,130.94,8.15081534]
[1764547840148,8.15081534,131.07,130.98,0.67]
[1764547840327,8.15081534,131.1,131.03,8.15081534]
[1764547840532,7.62427569,131.16,131.04,8.82081534]
[1764547840732,7.62427569,131.16,131.07,8.15081534]
[1764547840980,7.62020879,131.23,131.12,8.15081534]
[1764547841175,7.62020879,131.23,131.14,8.15081534]
[1764547841463,1.99999999,131.25,131.1,3.98]
[1764547841767,7.62501137,131.15,131.04,0.67]
[1764547842126,7.62137032,131.21,131.07,8.15081534]
[1764547842445,26.67479612,131.21,131.06,8.15081534]
[1764547842654,26.67479612,131.21,131.05,8.82081534]
[1764547842837,8.15081534,131.15,131.06,0.67]
[1764547843033,7.62137032,131.21,131.11,24.45967934]
[1764547843335,21.04456066,131.28,131.12,0.67]
[1764547843535,8.15081534,131.17,131.12,0.67]
[1764547843763,8.15081534,131.13,131.08,0.67]
[1764547843935,26.68710063,131.15,131.03,0.67]
[1764547844141,8.80994492,131.11,131.03,0.67]
[1764547844456,16.308864,131.14,131.03,0.67]
[1764547844640,8.80994492,131.13,131.03,0.67]
[1764547844959,8.80994492,131.14,131.04,16.308864]
[1764547845174,26.67124521,131.23,131.08,8.15081534]
[1764547845345,7.62020879,131.23,131.12,8.15081534]
[1764547845542,19.04665898,131.26,131.13,16.308864]
[1764547845733,7.61614623,131.3,131.17,16.308864]
[1764547845934,8.15081534,131.23,131.18,0.67]
[1764547846155,8.15081534,131.19,131.12,7.62624542]
[1764547846345,16.308864,131.23,131.12,0.67]
[1764547846549,8.15081534,131.13,131.12,0.67]
[1764547846863,16.308864,131.2,131.12,0.67]
[1764547847043,8.15081534,131.13,131.08,0.67]
[1764547847237,8.80994492,131.17,131.08,0.67]
[1764547847438,1.99999999,131.28,131.08,75.67]
[1764547847636,7.61904761,131.25,131.14,7.62543846]
[1764547847964,7.61556621,131.31,131.22,8.15081534]
[1764547848165,7.61556621,131.31,131.18,83.80994492]
[1764547848166,7.61556621,131.31,131.19,8.15081534]
[1764547848368,8.15081534,131.21,131.19,0.67]
[1764547848668,8.15081534,131.2,131.17,0.67]
[1764547848858,8.15081534,131.18,131.14,8.29543846]